bitfinex/quotes_SOLUSD_20250722
["timestamp","ask_amount","ask_price","bid_price","bid_amount"]
[1753189459866,5.37913877,202.6,202.41,24.70233684]
[1753189459867,15.37913877,202.6,202.53,4.93754011]
[1753189460096,0.49404673,202.59,202.53,4.93754011]
[1753189460389,10.0,202.58,202.5,4.9382716]
[1753189460597,10.0,202.58,202.55,12.2360105]
[1753189460598,38.02,202.57,202.55,12.2360105]
[1753189460812,5.37913877,202.6,202.5,43.28395061]
[1753189460813,43.43913877,202.6,202.57,26.0]
[1753189461086,37.1756,202.66,202.61,26.0]
[1753189461300,0.7,202.74,202.62,0.72]
[1753189461301,38.08,202.67,202.62,0.72]
[1753189461465,10.0,202.69,202.66,12.2360105]
[1753189461671,38.59404673,202.68,202.66,12.2360105]
[1753189461870,38.59404673,202.68,202.6,0.1]
[1753189461871,39.29404673,202.68,202.6,0.1]
[1753189462090,38.1,202.68,202.67,12.2360105]
[1753189462393,10.0,202.69,202.67,12.2360105]
[1753189462609,38.08,202.68,202.64,0.49348598]
[1753189462781,38.08,202.7,202.68,0.72]
[1753189462992,38.08,202.7,202.69,12.9560105]
[1753189463495,38.08,202.7,202.69,38.9560105]
[1753189463995,38.08,202.7,202.69,12.9560105]
[1753189464296,38.08,202.7,202.68,12.2360105]
[1753189464473,38.08,202.7,202.69,12.2360105]
[1753189465098,10.0,202.73,202.69,12.9560105]
[1753189465302,48.06,202.7,202.69,12.2360105]
[1753189465597,48.06,202.7,202.65,12.2360105]
[1753189465795,48.06,202.7,202.69,12.2360105]
[1753189466003,38.06,202.7,202.69,12.2360105]
[1753189466190,48.06,202.7,202.67,12.2360105]
[1753189466374,48.06,202.7,202.69,12.2360105]
[1753189466375,38.06,202.7,202.69,12.2360105]
[1753189466905,38.06,202.7,202.69,12.9560105]
[1753189467078,38.06,202.7,202.69,12.2360105]
[1753189467481,48.06,202.7,202.69,12.2360105]
[1753189467676,48.06,202.7,202.65,0.72]
[1753189467880,0.49404673,202.69,202.67,12.2360105]
[1753189468099,10.0,202.7,202.68,12.2360105]
[1753189468299,10.0,202.7,202.69,12.2360105]
[1753189468625,10.0,202.7,202.64,0.49348598]
[1753189468626,47.98,202.7,202.68,12.2360105]
[1753189468784,12.9360105,202.74,202.64,0.72]
[1753189468785,10.0,202.74,202.69,12.9560105]
[1753189469120,10.0,202.72,202.69,12.2360105]
[1753189469283,38.0,202.71,202.69,12.2360105]
[1753189469473,10.0,202.7,202.69,12.2360105]
[1753189469878,38.0,202.71,202.69,12.2360105]
[1753189470091,10.49404673,202.7,202.65,0.72]
[1753189470300,10.0,202.68,202.61,0.72]
[1753189470508,38.47404673,202.67,202.62,12.2360105]
[1753189470683,10.0,202.65,202.62,12.2360105]
[1753189471007,10.0,202.65,202.63,12.2360105]
[1753189471189,0.49404673,202.66,202.63,12.2360105]
[1753189471505,47.98,202.67,202.65,12.2360105]
[1753189471704,47.98,202.67,202.61,4.93556749]
[1753189471888,10.0,202.65,202.64,12.2360105]
[1753189472086,10.0,202.65,202.63,12.2360105]
[1753189472383,47.98,202.67,202.64,12.9560105]
[1753189472596,37.98,202.67,202.64,12.9560105]
[1753189472804,47.98,202.67,202.65,0.72]
[1753189472995,47.98,202.67,202.65,12.2360105]
[1753189473179,47.98,202.67,202.6,17.3752262]
[1753189473180,48.68,202.67,202.6,0.1]
[1753189473407,10.0,202.64,202.6,5.03582758]
[1753189473711,37.96,202.63,202.62,12.2360105]
[1753189474395,37.96,202.63,202.62,17.89135745]
[1753189474588,37.96,202.63,202.6,5.03563179]
[1753189474901,37.96,202.63,202.6,0.1]
[1753189475085,37.96,202.63,202.61,12.2360105]
[1753189475286,37.96,202.63,202.62,12.2360105]
[1753189475685,37.96,202.63,202.6,0.1]
[1753189475886,37.96,202.63,202.6,17.27184465]
[1753189475887,10.0,202.63,202.6,17.27184465]
[1753189476093,10.0,202.63,202.6,5.03583415]
[1753189476094,37.96,202.62,202.6,5.03583415]
[1753189476325,37.96,202.62,202.6,0.1]
[1753189476991,10.0,202.67,202.63,26.0]
[1753189477193,11.5044,202.72,202.66,12.2360105]
[1753189477515,37.96,202.73,202.71,12.2360105]
[1753189477721,37.96,202.73,202.72,12.2360105]
[1753189477923,37.96,202.73,202.72,12.9560105]
[1753189478218,10.49404673,202.81,202.75,26.0]
[1753189478418,1.5579,202.82,202.8,12.2360105]
[1753189478624,10.0,202.83,202.81,12.2360105]
[1753189478784,37.94,202.83,202.82,12.2360105]
[1753189478983,10.0,202.81,202.78,0.72]
[1753189479284,10.0,202.79,202.77,12.2360105]
[1753189479483,0.49404673,202.78,202.74,12.2360105]
[1753189479705,10.0,202.77,202.73,43.1685133]
[1753189480006,10.0,202.77,202.73,30.9325028]
[1753189480208,10.0,202.75,202.74,12.2360105]
[1753189480399,37.96,202.75,202.74,12.2360105]
[1753189480607,47.96,202.75,202.73,12.2360105]
[1753189481212,47.96,202.75,202.74,12.2360105]
[1753189481609,47.96,202.75,202.72,4.93281181]
[1753189481806,47.96,202.75,202.73,12.2360105]
[1753189482016,0.49404673,202.74,202.7,26.0]
[1753189482190,48.45404673,202.75,202.73,12.2360105]
[1753189482390,47.96,202.75,202.74,12.2360105]
[1753189482890,47.96,202.75,202.73,12.2360105]
[1753189483091,47.96,202.75,202.74,12.2360105]
[1753189483330,37.96,202.75,202.74,12.9560105]
[1753189483627,37.96,202.75,202.74,12.2360105]
[1753189483795,47.96,202.75,202.74,12.2360105]
[1753189483987,60.8960105,202.75,202.66,0.72]
[1753189484185,60.8960105,202.75,202.67,12.2360105]
[1753189484186,10.0,202.68,202.67,12.2360105]
[1753189484411,47.88,202.68,202.66,12.2360105]
[1753189484621,37.88,202.68,202.67,12.2360105]
[1753189484793,10.0,202.71,202.67,12.2360105]
[1753189485103,37.84,202.7,202.69,12.2360105]
[1753189485316,37.84,202.7,202.69,12.9560105]
[1753189486102,37.84,202.7,202.69,12.2360105]
[1753189486607,37.84,202.7,202.64,12.2360105]
[1753189486608,10.0,202.66,202.64,12.2360105]
[1753189486916,37.9,202.65,202.61,43.99456689]
[1753189487225,10.49404673,202.74,202.65,16.78468397]
[1753189487429,10.0,202.74,202.73,12.2360105]
[1753189487603,10.0,202.74,202.71,12.2360105]
[1753189487803,37.88,202.74,202.73,12.2360105]
[1753189488003,37.88,202.74,202.73,0.72]
[1753189488233,37.88,202.74,202.73,12.9560105]
[1753189488432,10.0,202.8,202.73,12.9560105]
[1753189488629,37.94,202.79,202.77,26.0]
[1753189488812,37.94,202.79,202.78,12.2360105]
[1753189489013,37.94,202.79,202.78,12.9560105]
[1753189489429,0.06,202.79,202.78,12.9560105]
[1753189490230,0.06,202.79,202.73,4.93266009]
[1753189490408,0.06,202.79,202.58,12.2360105]
[1753189490409,10.0,202.76,202.7,4.93339911]
[1753189490732,10.0,202.74,202.69,0.72]
[1753189490933,47.84,202.77,202.73,12.2360105]
[1753189491119,47.84,202.77,202.76,12.2360105]
[1753189491727,0.06,202.79,202.76,12.9560105]
[1753189491933,0.06,202.79,202.78,12.2360105]
[1753189492435,0.06,202.79,202.78,12.9560105]
[1753189492633,0.06,202.79,202.78,17.8874633]
[1753189493236,0.06,202.79,202.78,4.9314528]
[1753189493558,0.06,202.79,202.78,12.2360105]
[1753189494617,0.06,202.79,202.78,17.1674633]
[1753189494819,38.31404673,202.79,202.76,38.2360105]
[1753189495019,10.0,202.78,202.75,12.2360105]
[1753189495318,1.19404673,202.77,202.72,17.16892289]
[1753189495518,10.7,202.76,202.67,0.72]
[1753189495749,10.0,202.74,202.7,12.2360105]
[1753189495925,0.49404673,202.73,202.7,12.2360105]
[1753189496331,10.0,202.71,202.67,17.17012643]
[1753189496529,10.0,202.69,202.67,4.93411593]
[1753189496742,10.0,202.69,202.67,17.17012643]
[1753189497128,38.25404673,202.7,202.67,17.17012643]
[1753189497129,10.0,202.7,202.68,12.2360105]
[1753189497327,37.74,202.71,202.69,12.2360105]
[1753189497552,37.74,202.71,202.7,12.2360105]
[1753189497847,37.74,202.74,202.7,12.2360105]
[1753189498048,10.0,202.72,202.7,38.2360105]
[1753189498348,10.0,202.72,202.69,12.2360105]
[1753189498550,10.0,202.7,202.69,17.169653]
[1753189498850,47.72,202.7,202.67,30.9339004]
[1753189499049,47.72,202.7,202.68,12.2360105]
[1753189499645,47.72,202.7,202.66,0.03]
[1753189499646,0.49404673,202.69,202.66,17.20034921]
[1753189499828,10.0,202.68,202.66,17.20034921]
[1753189500028,10.0,202.68,202.67,12.2360105]
[1753189500342,10.0,202.68,202.66,0.03]
[1753189500532,25.6972307,202.67,202.66,0.03]
[1753189500730,8.91254673,202.67,202.66,0.03]
[1753189500931,10.0,202.68,202.66,12.2660105]
[1753189501127,47.68,202.68,202.66,0.03]
[1753189501335,0.49404673,202.67,202.66,0.03]
[1753189501536,37.68,202.68,202.66,12.2660105]
[1753189501735,10.49404673,202.71,202.67,12.2360105]
[1753189502059,37.68,202.75,202.7,12.2360105]
[1753189502344,37.68,202.75,202.68,26.72]
[1753189502345,37.68,202.75,202.71,0.72]
[1753189502654,10.0,202.7,202.69,4.9336425]
[1753189502847,47.68,202.7,202.67,17.16990009]
[1753189503150,0.49404673,202.74,202.69,12.2360105]
[1753189503352,0.06,202.79,202.76,26.0]
[1753189503565,0.49404673,202.86,202.78,12.2360105]
[1753189503851,0.06,202.87,202.85,12.2360105]
[1753189504051,37.72,202.86,202.79,26.72]
[1753189504228,37.72,202.86,202.85,12.2360105]
[1753189504728,0.06,202.87,202.85,17.88576154]
[1753189504941,37.72,202.95,202.89,26.0]
[1753189505141,37.72,202.95,202.94,12.2360105]
[1753189506046,2.14054673,202.97,202.94,12.2360105]
[1753189506235,37.72,202.96,202.94,12.2360105]
[1753189506431,37.72,202.96,202.95,12.2360105]
[1753189506636,37.72,202.96,202.95,17.1633325]
[1753189506843,0.49404673,203.02,202.95,17.1633325]
[1753189507028,37.68,203.01,202.95,5.647322]
[1753189507233,6.0421,203.03,203.0,12.2360105]
[1753189507559,1.5164,203.04,202.98,26.0]
[1753189507727,38.17404673,203.03,203.0,12.2360105]
[1753189508263,1.6297,203.12,203.05,26.0]
[1753189508429,1.19404673,203.16,203.11,12.2360105]
[1753189508624,37.68,203.15,203.06,0.72]
[1753189508829,0.49404673,203.14,203.06,0.72]
[1753189509025,0.49404673,203.14,203.09,12.2360105]
[1753189509359,6.2747,203.17,203.13,12.2360105]
[1753189509528,38.15404673,203.16,203.15,12.2360105]
[1753189509728,38.15404673,203.16,203.08,0.72]
[1753189510031,0.06,203.12,203.05,26.72]
[1753189510234,0.06,203.12,203.11,12.2360105]
[1753189511050,0.06,203.12,203.11,12.9560105]
[1753189511434,0.06,203.12,203.11,12.2360105]
[1753189512228,0.06,203.12,203.06,0.72]
[1753189512429,0.55404673,203.12,203.06,12.2360105]
[1753189512654,0.7,203.11,203.06,12.2360105]
[1753189512838,38.79404673,203.1,203.06,12.2360105]
[1753189513034,0.7,203.09,203.01,4.9256591]
[1753189513261,0.7,203.09,202.95,12.31792901]
[1753189513262,0.49404673,203.08,203.04,12.2360105]
[1753189513563,0.49404673,203.08,203.06,12.2360105]
[1753189513736,0.49404673,203.08,202.99,4.92615004]
[1753189513737,0.49404673,203.1,203.02,26.0]
[1753189513940,37.58,203.09,203.06,12.2360105]
[1753189514266,1.19404673,203.08,202.97,5.64661244]
[1753189514453,16.78468397,203.07,203.02,12.2360105]
[1753189514756,1.19404673,203.06,203.02,12.2360105]
[1753189515069,1.19404673,203.06,202.94,0.72]
[1753189515070,38.28,203.05,202.94,0.72]
[1753189515270,29.5147412,203.04,202.98,12.2360105]
[1753189515447,17.2787307,203.04,202.98,12.2360105]
[1753189515640,17.2787307,203.04,202.99,12.2360105]
[1753189515836,0.7,203.03,202.98,12.2360105]
[1753189516153,1.19404673,203.02,202.99,12.2360105]
[1753189516369,0.49404673,203.03,203.01,12.2360105]
[1753189516538,0.49404673,203.03,202.94,31.64742932]
[1753189516740,0.49404673,203.03,203.01,12.2360105]
[1753189516940,37.54,203.02,203.01,12.2360105]
[1753189517661,2.04614673,203.05,203.01,12.2360105]
[1753189517662,37.52,203.04,203.01,12.9160105]
[1753189517833,0.49404673,203.03,202.99,12.2360105]
[1753189518040,0.68,203.02,202.99,12.2360105]
[1753189518239,0.49404673,203.03,203.0,12.2360105]
[1753189518552,37.52,203.03,203.02,12.2360105]
[1753189519038,0.06,203.04,203.02,12.9160105]
[1753189519374,0.06,203.04,203.03,12.2360105]
[1753189519735,11.4208312,203.09,203.03,12.2360105]
[1753189519736,0.06,203.09,203.06,26.0]
[1753189519954,0.06,203.09,203.08,12.2360105]
[1753189520472,0.06,203.09,203.06,12.2360105]
[1753189520674,37.6,203.09,203.06,12.2360105]
[1753189520840,0.06,203.09,203.08,12.2360105]
[1753189521052,0.06,203.09,203.08,12.9160105]
[1753189521441,0.06,203.09,203.08,30.19311125]
[1753189522145,0.06,203.09,203.08,29.70069447]
[1753189522358,0.06,203.09,203.08,34.62486228]
[1753189522563,1e-08,203.09,203.08,34.62486228]
[1753189523376,1e-08,203.12,203.08,34.62486228]
[1753189523568,1e-08,203.12,203.11,55.02069447]
[1753189523944,1e-08,203.12,203.11,67.93670497]
[1753189524160,1e-08,203.12,203.11,26.68]
[1753189524368,1e-08,203.12,203.11,43.839451]
[1753189524953,1e-08,203.12,203.11,60.62413497]
[1753189525670,43.9696,203.23,203.15,26.0]
[1753189525671,37.52,203.23,203.15,26.0]
[1753189525845,37.52,203.23,203.22,12.2360105]
[1753189526491,37.52,203.23,203.22,17.15678601]
[1753189526659,2.71754673,203.28,203.22,17.15678601]
[1753189526660,2.71754673,203.28,203.22,12.2360105]
[1753189526865,2.71754673,203.28,203.23,12.2360105]
[1753189527066,0.68,203.27,203.23,12.2360105]
[1753189527263,0.68,203.27,203.24,12.2360105]
[1753189527468,1.5435,203.28,203.26,12.2360105]
[1753189527773,0.49404673,203.27,203.23,12.2360105]
[1753189527953,1.5435,203.28,203.25,12.2360105]
[1753189528979,1.17404673,203.27,203.24,12.2360105]
[1753189529273,2.03754673,203.28,203.24,12.2360105]
[1753189529579,0.68,203.27,203.24,12.2360105]
[1753189529949,0.68,203.27,203.21,4.92101766]
[1753189529950,0.68,203.27,203.25,12.2360105]
[1753189530150,13.41005723,203.26,203.17,12.2360105]
[1753189530366,12.2360105,203.24,203.17,12.2360105]
[1753189530565,12.2360105,203.22,203.11,4.9234405]
[1753189530775,12.2360105,203.2,203.13,12.2360105]
[1753189530978,12.2360105,203.17,203.11,12.2360105]
[1753189531180,44.58464673,203.16,203.11,12.2360105]
[1753189531377,43.90464673,203.16,203.14,12.2360105]
[1753189531596,43.4106,203.16,203.09,0.68]
[1753189531783,43.4106,203.16,203.13,12.2360105]
[1753189532874,0.49404673,203.15,203.1,4.92368291]
[1753189533490,0.49404673,203.15,203.13,12.2360105]
[1753189533863,37.4,203.16,203.14,12.2360105]
[1753189534070,37.4,203.16,203.15,12.2360105]
[1753189534292,37.4,203.16,203.14,12.2360105]
[1753189534589,37.4,203.16,203.15,12.2360105]
[1753189534905,37.4,203.16,203.15,17.15848158]
[1753189535075,37.4,203.16,203.15,12.2360105]
[1753189535692,37.4,203.21,203.15,17.83848158]
[1753189535894,37.4,203.21,203.2,12.2360105]
[1753189536684,37.4,203.21,203.19,12.2360105]
[1753189536880,37.4,203.21,203.2,12.2360105]
[1753189537894,50.3160105,203.21,203.15,4.92247108]
[1753189538073,12.73005723,203.2,203.14,17.15871648]
[1753189538506,37.4,203.19,203.17,12.2360105]
[1753189538680,37.4,203.19,203.18,4.92174426]
[1753189538878,37.4,203.19,203.18,17.15775476]
[1753189539093,37.4,203.19,203.18,4.92174426]
[1753189539292,37.4,203.19,203.18,17.15775476]
[1753189539793,1.5435,203.28,203.18,30.14211542]
[1753189539990,0.06,203.33,203.27,12.2360105]
[1753189540287,0.06,203.33,203.31,12.2360105]
[1753189540288,37.46,203.33,203.31,12.2360105]
[1753189540494,37.46,203.33,203.26,26.0]
[1753189540495,0.68,203.32,203.26,26.0]
[1753189540673,1.6288,203.35,203.26,26.0]
[1753189540674,1.6288,203.35,203.31,26.0]
[1753189540874,0.2,203.44,203.42,16.78468397]
[1753189540875,1e-08,203.44,203.42,16.78468397]
[1753189541070,1e-08,203.44,203.43,0.49156958]
[1753189541297,1e-08,203.44,203.43,12.9160105]
[1753189541549,1e-08,203.44,203.39,0.68]
[1753189541700,1e-08,203.44,203.42,12.2360105]
[1753189541879,1e-08,203.44,203.43,12.2360105]
[1753189542270,1e-08,203.44,203.43,12.9160105]
[1753189542676,1e-08,203.44,203.43,17.83170631]
[1753189543480,1e-08,203.44,203.43,34.61639028]
[1753189544301,0.2,203.55,203.47,42.78468397]
[1753189544511,0.2,203.55,203.54,12.2360105]
[1753189544687,0.2,203.55,203.54,17.1490497]
[1753189544889,1e-08,203.55,203.54,60.61373367]
[1753189545092,1e-08,203.55,203.54,17.8290497]
[1753189545494,1e-08,203.55,203.54,43.1490497]
[1753189545889,1e-08,203.55,203.54,43.8290497]
[1753189546211,1e-08,203.55,203.54,60.61373367]
[1753189546401,1e-08,203.55,203.54,98.09373367]
[1753189546580,1e-08,203.55,203.54,43.8290497]
[1753189546987,1e-08,203.55,203.54,17.8290497]
[1753189547490,1e-08,203.55,203.54,84.82104809]
[1753189547696,1e-08,203.55,203.54,68.03636412]
[1753189547898,1e-08,203.55,203.54,17.1490497]
[1753189548411,1e-08,203.55,203.54,47.1490497]
[1753189548605,1e-08,203.55,203.54,17.1490497]
[1753189549506,1e-08,203.55,203.52,4.91332302]
[1753189549806,1e-08,203.55,203.5,4.91377661]
[1753189550110,0.69,203.54,203.5,17.14978711]
[1753189550287,1e-08,203.55,203.52,12.2360105]
[1753189550604,1e-08,203.55,203.54,12.2360105]
[1753189551015,1e-08,203.55,203.54,17.1490497]
[1753189552010,0.69000001,203.55,203.5,12.2360105]
[1753189552212,0.69,203.54,203.5,12.2360105]
[1753189552585,12.2360105,203.51,203.45,12.2360105]
[1753189552785,12.2360105,203.49,203.42,17.15193188]
[1753189552985,0.69,203.48,203.44,12.2360105]
[1753189553189,1.5343,203.5,203.47,12.2360105]
[1753189553388,12.2360105,203.48,203.39,12.2360105]
[1753189553610,12.2360105,203.45,203.35,12.29366649]
[1753189553794,12.9260105,203.44,203.37,12.2360105]
[1753189554196,12.2360105,203.43,203.32,4.9183553]
[1753189554508,50.4660105,203.43,203.37,12.2360105]
[1753189554716,50.4660105,203.43,203.32,17.21424355]
[1753189554717,12.2360105,203.41,203.34,12.2360105]
[1753189555011,12.2360105,203.41,203.31,26.0]
[1753189555012,6.6064,203.37,203.31,4.91857284]
[1753189555210,12.9260105,203.36,203.29,17.15489304]
[1753189555524,12.2360105,203.31,203.2,0.67]
[1753189555693,12.2360105,203.3,203.23,12.2360105]
[1753189555894,37.6,203.31,203.24,12.2360105]
[1753189556212,12.2360105,203.25,203.13,0.67]
[1753189556508,12.2360105,203.23,203.17,12.2360105]
[1753189556812,12.2360105,203.18,203.12,12.2360105]
[1753189557010,12.2360105,203.17,203.1,12.2360105]
[1753189557404,12.2360105,203.17,203.11,12.2360105]
[1753189557913,0.69,203.2,203.14,12.2360105]
[1753189558122,0.69,203.2,203.09,26.67]
[1753189558123,12.2360105,203.19,203.13,12.2360105]
[1753189558612,12.9260105,203.25,203.18,12.2360105]
[1753189558818,0.69,203.25,203.18,4.92174426]
[1753189559111,0.69,203.25,203.16,12.2360105]
[1753189559112,12.2360105,203.22,203.16,4.9219882]
[1753189559294,12.2360105,203.22,203.16,17.1579987]
[1753189559501,12.2360105,203.23,203.16,4.9219882]
[1753189559698,12.2360105,203.24,203.17,12.2360105]
[1753189559901,0.69,203.25,203.17,12.2360105]
[1753189559902,12.2360105,203.23,203.17,12.2360105]
[1753189560108,0.69,203.25,203.17,12.2360105]
[1753189560313,50.5660105,203.3,203.23,12.2360105]
[1753189560510,37.64,203.3,203.25,12.2360105]
[1753189560711,12.2360105,203.26,203.19,26.0]
[1753189560929,0.69,203.29,203.25,12.2360105]
[1753189561090,37.64,203.3,203.28,12.2360105]
[1753189561295,1.6597,203.34,203.29,12.2360105]
[1753189561594,1.6597,203.34,203.32,12.2360105]
[1753189561932,6.6064,203.37,203.33,12.2360105]
[1753189562109,37.68,203.38,203.36,12.2360105]
[1753189562421,37.68,203.38,203.35,12.2360105]
[1753189562600,37.68,203.38,203.37,12.2360105]
[1753189562793,37.68,203.38,203.36,17.15325361]
[1753189563031,37.68,203.38,203.37,12.2360105]
[1753189563793,38.37,203.38,203.34,12.2360105]
[1753189564404,37.68,203.38,203.35,12.2360105]
[1753189564600,2.1933,203.42,203.37,12.2360105]
[1753189564807,39.8333,203.42,203.37,12.2360105]
[1753189565008,0.69,203.41,203.36,12.2360105]
[1753189565307,0.69,203.4,203.36,12.2360105]
[1753189565508,0.69,203.4,203.35,12.2360105]
[1753189565699,0.69,203.4,203.36,12.2360105]
[1753189566018,39.1433,203.42,203.36,12.2360105]
[1753189566601,6.5509,203.45,203.41,12.2360105]
[1753189566807,6.5509,203.45,203.37,0.67]
[1753189566808,1.5284,203.5,203.44,12.2360105]
[1753189567044,6.0141,203.54,203.42,26.67]
[1753189567205,12.2360105,203.51,203.45,12.2360105]
[1753189567402,12.2360105,203.53,203.47,12.2360105]
[1753189567603,12.2360105,203.51,203.45,12.2360105]
[1753189567901,0.69,203.5,203.4,0.67]
[1753189568100,12.9260105,203.5,203.44,12.2360105]
[1753189568314,12.2360105,203.51,203.45,12.2360105]
[1753189568521,43.6341,203.54,203.49,12.2360105]
[1753189568703,37.62,203.54,203.53,12.2360105]
[1753189568915,1e-08,203.55,203.54,4.9130392]
[1753189569110,1e-08,203.55,203.54,17.1490497]
[1753189569615,1e-08,203.55,203.54,12.2360105]
[1753189569927,1e-08,203.55,203.54,38.9060105]
[1753189571024,6.34672451,203.62,203.55,4.91279783]
[1753189571218,6.34672451,203.62,203.59,12.2360105]
[1753189571419,0.69,203.61,203.51,26.0]
[1753189571726,0.69,203.61,203.56,12.2360105]
[1753189572229,0.69,203.6,203.51,26.0]
[1753189572402,17.83767895,203.6,203.54,12.2360105]
[1753189572721,12.9260105,203.6,203.54,12.2360105]
[1753189572919,0.69,203.6,203.55,12.2360105]
[1753189573221,0.69,203.59,203.5,0.67]
[1753189573424,0.69,203.59,203.54,12.2360105]
[1753189573797,0.69,203.59,203.55,12.2360105]
[1753189574129,0.69,203.59,203.54,12.2360105]
[1753189574431,0.69,203.58,203.54,12.2360105]
[1753189574623,12.2360105,203.55,203.43,4.91569581]
[1753189574930,12.2360105,203.53,203.47,12.2360105]
[1753189575130,12.2360105,203.51,203.38,12.9618749]
[1753189575432,0.69,203.5,203.45,12.2360105]
[1753189575726,37.5,203.53,203.48,12.2360105]
[1753189576032,37.5,203.53,203.5,12.2360105]
[1753189576201,37.5,203.53,203.52,12.2360105]
[1753189576402,37.5,203.58,203.53,4.91328059]
[1753189576623,37.5,203.58,203.54,12.2360105]
[1753189578009,37.5,203.58,203.53,4.91328059]
[1753189578212,37.5,203.58,203.54,12.2360105]
[1753189578421,0.69,203.61,203.57,12.2360105]
[1753189578729,6.34672451,203.62,203.58,12.2360105]
[1753189578935,7.03672451,203.62,203.56,12.2360105]
[1753189579131,7.03672451,203.62,203.57,12.2360105]
[1753189579321,0.69,203.61,203.54,4.91300694]
[1753189579518,12.2360105,203.6,203.52,26.0]
[1753189579708,12.2360105,203.6,203.54,12.2360105]
[1753189580337,6.34672451,203.62,203.54,12.2360105]
[1753189580545,6.34672451,203.62,203.58,12.2360105]
[1753189580833,7.03672451,203.62,203.58,12.2360105]
[1753189581037,0.69,203.61,203.57,12.2360105]
[1753189581344,0.69,203.61,203.5,12.28501228]
[1753189581345,12.2360105,203.59,203.53,12.2360105]
[1753189581525,37.38,203.58,203.53,12.2360105]
[1753189581830,37.38,203.58,203.55,12.2360105]
[1753189582229,37.38,203.58,203.54,12.2360105]
[1753189582428,38.07,203.58,203.54,12.2360105]
[1753189582839,38.07,203.58,203.55,12.2360105]
[1753189583236,38.07,203.58,203.54,12.2360105]
[1753189583411,38.07,203.58,203.53,12.2360105]
[1753189583606,0.69,203.57,203.53,12.2360105]
[1753189583927,37.38,203.58,203.54,12.2360105]
[1753189584309,17.47468397,203.57,203.45,17.15122308]
[1753189584504,22.38709563,203.57,203.48,12.2360105]
[1753189584711,0.69,203.57,203.51,12.2360105]
[1753189585016,49.5960105,203.56,203.5,12.2360105]
[1753189585215,49.5960105,203.56,203.47,0.72]
[1753189585216,37.36,203.56,203.51,12.2360105]
[1753189585714,12.9260105,203.55,203.47,0.72]
[1753189586014,12.9260105,203.55,203.47,12.2360105]
[1753189586015,12.2360105,203.54,203.47,12.2360105]
[1753189586205,12.2360105,203.54,203.48,12.2360105]
[1753189586409,12.2360105,203.51,203.44,4.9454312]
[1753189586629,49.5960105,203.5,203.44,17.1814417]
[1753189586806,0.69,203.58,203.49,12.2360105]
[1753189587019,37.36,203.57,203.56,12.2360105]
[1753189587219,37.36,203.57,203.52,0.72]
[1753189587421,37.36,203.57,203.55,12.2360105]
[1753189587938,37.36,203.57,203.56,12.2360105]
[1753189588440,37.36,203.57,203.53,4.91328059]
[1753189588739,37.36,203.57,203.56,12.2360105]
[1753189590121,37.36,203.57,203.53,17.91648208]
[1753189590322,37.36,203.57,203.56,12.2360105]
[1753189590720,37.36,203.57,203.56,0.72]
[1753189590937,37.36,203.57,203.56,12.9560105]
[1753189591136,37.36,203.57,203.56,12.2360105]
[1753189591831,37.36,203.57,203.53,4.91328059]
[1753189592023,2.3409,203.6,203.56,12.2360105]
[1753189592217,6.40672451,203.62,203.59,12.2360105]
[1753189592218,0.06,203.62,203.59,12.2360105]
[1753189592445,0.06,203.62,203.57,0.72]
[1753189592446,0.06,203.62,203.6,12.2360105]
[1753189592619,0.06,203.62,203.61,12.2360105]
[1753189593019,0.06,203.62,203.59,12.2360105]
[1753189593445,0.06,203.62,203.6,12.2360105]
[1753189593649,0.06,203.62,203.61,12.72714551]
[1753189593650,1e-08,203.62,203.61,12.72714551]
[1753189593822,0.06,203.68,203.65,26.0]
[1753189594022,1e-08,203.68,203.67,12.2360105]
[1753189594236,1e-08,203.68,203.67,17.14591377]